Workbook

Sheet Cover sheet
B8: Course on Nonperforming Loan Resolution | I8: NPL Resolution Case Study #1
B9: 2021-11-26
B11: Instructor | D11: Karlis Bauze
D12: Senior Financial Sector Specialist
I14: Please enable macros to operate this spreadsheet.

Sheet Main sheet
B2: Background
E3: Please read the background information in this section, then proceed to "Viability assessment" below.
C5: Loan to be resolved
C7: Values in local currency | E7: NPV | F7: 31.12.16 | G7: 31.12.17 | H7: 31.12.18 | I7: 31.12.19 | J7: 31.12.20 | K7: 31.12.21
F8: t = 0 | G8: t + 1 | H8: t + 2 | I8: t + 3 | J8: t + 4 | K8: t + 5
C9: Principal outstanding | E9: =NPV($F$14,G9:K9)+F9 -> 9788709 | F9: 9788709
C10: Interest outstanding | E10: =NPV($F$14,G10:K10)+F10 -> 0 | F10: 0
C12: Parameters
C14: Interest rate over time | F14: 0.1 | H14: Years to enforce collateral (insolvency) | K14: 3
C15: Years to enforce collateral | F15: 3 | H15: Years to receive liquidation proceeds | K15: 5
F17: 31.12.16 | G17: 31.12.17 | H17: 31.12.18 | I17: 31.12.19 | J17: 31.12.20 | K17: 31.12.21
F18: t = 0 | G18: t + 1 | H18: t + 2 | I18: t + 3 | J18: t + 4 | K18: t + 5
C19: Exchange rate: local currency to USD | F19: 27.19 | G19: 27.75 | H19: 28.31 | I19: 28.88 | J19: 29.44 | K19: 30
B21: Viability assessment | F21: Click on "Start" on the button to the left and determine:
F22: Is the company viable? | J22: =IF(ISBLANK('Viability assessment'!H3), " ", 'Viability assessment'!H3) -> Yes
B24: Workout options | F24: Once viability is assessed, click on the "Update" button to expand the workout options.
F25: Click on "Start" to explore details of individual options.
C28: Restructuring | E28: NPV | F28: 31.12.16 | G28: 31.12.17 | H28: 31.12.18 | I28: 31.12.19 | J28: 31.12.20 | K28: 31.12.21 | M28: NPV
F29: t = 0 | G29: t + 1 | H29: t + 2 | I29: t + 3 | J29: t + 4 | K29: t + 5
C30: Principal
C31: Interest
C32: Sum
C35: Sales to third party | E35: NPV | F35: 31.12.16 | G35: 31.12.17 | H35: 31.12.18 | I35: 31.12.19 | J35: 31.12.20 | K35: 31.12.21 | M35: NPV
F36: t = 0 | G36: t + 1 | H36: t + 2 | I36: t + 3 | J36: t + 4 | K36: t + 5
C37: Proposal 1
C38: Proposal 2
C41: Collateral enforcement | E41: NPV | F41: 31.12.16 | G41: 31.12.17 | H41: 31.12.18 | I41: 31.12.19 | J41: 31.12.20 | K41: 31.12.21 | M41: NPV
F42: t = 0 | G42: t + 1 | H42: t + 2 | I42: t + 3 | J42: t + 4 | K42: t + 5
C43: Recovery
C44: Expenses
C45: Sum
C48: Insolvency proceeding | E48: NPV | F48: 31.12.16 | G48: 31.12.17 | H48: 31.12.18 | I48: 31.12.19 | J48: 31.12.20 | K48: 31.12.21 | M48: NPV
F49: t = 0 | G49: t + 1 | H49: t + 2 | I49: t + 3 | J49: t + 4 | K49: t + 5
C50: Recovery
C51: Expenses
C52: Sum
A54: Restructuring | B54: Conclusion
A55: Sales to third party | E55: Edit the interest rate parameter in cell E14 and use results above to answer the following questions:
A56: Collateral enforcement
A57: Insolvency proceeding | C57: The best workout option, assuming a constant interest rate of 10%, is:
C58: … assuming a constant interest rate of 20%, is:
E60: What would be the reasons behind?

Sheet Framework

Sheet Viability assessment
A2: Yes | B2: Viability assessment | E2: Analyze material below, and click on the green cell's dropdown menu to determine:
A3: No | E3: Is the company viable? | H3: Yes
B5: Background | E5: Once done, click "Finish" to return.
B7: In December 2012 the bank lent to the company USD 360,000 to fund the modernization and working capital increase.
B8: The loan is repayable in USD 10,000 instalments over three years starting from January 2015.
B9: Monthly interest payments are based on 10 percent annual interest rate.
B10: The loan is secured by a mortgage of real estate, pledge of equipment, and furniture with a total estimated value of local currency 2,000,000 at loan origination.
B11: Additionally, the controlling shareholder provided personal guaranty for the loan.
B13: In December 2014, the Bank postponed the start of principal repayment from January 2015 to January 2017 as part of a general bank-wide program of debt restructuring in response to macroeconomic deterioration.
B15: Financial statement
E17: 2014 | F17: 2015 | G17: 2016 (E) | H17: Mid-term targets
B18: Sales | E18: 5055373 | F18: 5497489 | G18: 5914613 | H18: 7044398
B19: EBITDA | E19: 919756 | F19: 966316 | G19: 1617809 | H19: 1767436
B20: EBIT | E20: 832755 | F20: 885695 | G20: 1540368 | H20: 1631084
B21: Net earnings | E21: -2295960 | F21: -2467443 | G21: -588442 | H21: =(G21-F21)/2 -> 939500.5
B22: Key financial ratios (in percentages) | J22: Reference benchmarks* | M22: Good | N22: Moderate | O22: Bad
B23: Compound annual growth rate of revenue | E23: =(G23-F23)/2 -> -0.5789653318 | F23: =(F18/E18-1) * 100 -> 8.745467446 | G23: =(G18/F18-1) * 100 -> 7.587536783 | H23: =((H18/G18-1) * 100)^0.5 -> 4.370536338 | J23: Compound annual growth rate of revenue | M23: > 5% | N23: -5% to 5% | O23: < -5%
B24: Net debt / EBITDA | E24: 5.7 | F24: 8.9 | G24: 6.1 | H24: 1.9 | J24: Net debt / EBITDA ratio | M24: < 1 | N24: 1 to 5 | O24: > 5
B25: Debt service coverage ratio | E25: 2.1 | F25: 1.3 | G25: 1.7 | H25: 5.2 | J25: Debt service coverage ratio | M25: > 1.5 | N25: 1 to 1.5 | O25: < 1
J26: *: Values adapted from three studies by Deloitte, KPMG, and PwC in Balkan countries.
B27: Additional Information
B29: In mid-2014, the company suffered from deep local currency depreciation, while the loan was denominated in USD.
B30: The company faced difficulties in raw material supply as well as decreased prices and sales disruption in foreign markets.
B31: Sales and profits continued to be below forecasted targets throughout 2014-16.
B32: The company was added to the watch list in 2015 based on its weak financial position mainly due to foreign currency loan revaluation and EBITDA much below the business plan targets.
B34: The financial projections assumed modest increase in sales for the next 5 years driven mainly by volume increase.
B35: Forecast prices for steel products were in line with the bank’s own internal forecasts.
B36: EBIT and EBITDA margins were expected to improve slightly with increased capacity utilization.
B37: Although the company would have negative equity resulting from accumulated foreign currency losses, it would turn to positive net earnings as soon as local currency depreciation ceased.
B39: Indicate your assessment on the firm's viability in the green cell at the top of the page, then click on "Finish" to return to the main page.

Sheet Restructuring
B2: Restructuring | E2: Review the description below on the restructuring process.
E3: Once done, click on the "Finish" button to return to main page.
B5: Background
B7: Loan conversion into local currency was not required because half of the sales were from exporting, generating foreign currency revenue.
B8: The guidelines recommended a tenor not to exceed five years, EBITDA of at least 110 percent of principal and interest repayments, a maximum rate of 8 percent.
B9: With average annual cash flow of almost USD 62,000 (assuming further 2 percent annual local currency depreciation), the most the company could afford to pay on an annual basis was USD 56,000.
B10: This amount was insufficient to meet debt service requirements that, according to the signed loan agreement, should amount on average to about USD 144,000 for the next 3 years.
B12: EMP would not be able to repay its outstanding debt in full over a five-year period as the principal payments alone would amount to USD 72,000 per year on average.
B13: The loan officer reduced the debt in USD 5,000 increments until he reached USD 225,000.
B14: Principal payments together with interest at 8 percent would total on average USD 55,277 below maximum target.
B15: At the same time, the loan officer was unwilling to recommend that the Bank forgive the remaining USD 135,000 balance on the loan at this time.
B16: He therefore recommended that the existing debt to be split into two loans, both secured by a mortgage on the land and building, as well as pledges over furniture, fixtures, and equipment.
B18: The first loan, or the “A” loan, would be in the amount of USD 225,000 and would be payable in 60 instalments with a first instalment of USD 2,214 and each next instalment by USD 52 higher, plus 8 percent interest on outstanding debt.
B19: The remaining balance of USD 135,000, would be placed on the “B” note, at 0 percent interest and a bullet maturity of five years.
B20: To ensure continued cooperation by the company, the Bank would agree in a new master restructuring agreement that the B note would be forgiven if the A note was repaid in accordance with its terms.
C22: Restructuring | E22: 31.12.16 | F22: 31.12.17 | G22: 31.12.18 | H22: 31.12.19 | I22: 31.12.20 | J22: 31.12.21
E23: t = 0 | F23: t + 1 | G23: t + 2 | H23: t + 3 | I23: t + 4 | J23: t + 5
C24: "A" note
C25: Principal | E25: 0 | F25: 824142 | G25: 1051254 | H25: 1286794 | I25: 1530762 | J25: 1783157
C26: Interest | E26: 0 | F26: 461860 | G26: 396373 | H26: 310879 | I26: 204368 | J26: 75833
C27: "B" note
C28: Principal (conditional) | E28: 0 | F28: 0 | G28: 0 | H28: 0 | I28: 0 | J28: =135000*27.2 -> 3672000
B30: Conditions
C31: Covenant restricting dividends and other withdrawals;
C32: Monthly cash budget together with quarterly financial statements;
C33: Maintenance of EBITDA debt service coverage at all times of at least 1.1;
C34: EBITDA above USD 55,000 be used to the “A” note until it is repaid;
C35: “B” note was not to be used in the calculation of the financial leverage covenants.
B37: Now, click on "Finish" at top of the spreadsheet to return to the main page.

Sheet Sales to third party
B2: Sales to third party
E3: Consider the scenario below, then return to the main page:
B5: Background
B7: The following offers have been received:
C9: Offers | E9: 31.12.16 | F9: 31.12.17 | G9: 31.12.18 | H9: 31.12.19 | I9: 31.12.20 | J9: 31.12.21
E10: t = 0 | F10: t + 1 | G10: t + 2 | H10: t + 3 | I10: t + 4 | J10: t + 5
C11: Proposal 1 | E11: 3750000 | F11: 1100000 | G11: 0 | H11: 0 | I11: 0 | J11: 0
C12: Proposal 2 | E12: 1350000 | F12: 1800000 | G12: 2250000 | H12: 0 | I12: 0 | J12: 0

Sheet Collateral enforcement
B2: Collateral enforcement
E3: Consider the information below, then return to the main page:
C5: Collateral values
C7: The collaterals have been reappraised. They will be liquidated for values below if enforced:
E9: Appraisal values | G9: Sales value at enforcement
E10: Original | F10: Updated | G10: Value | H10: % of appraisal value
C11: Land plot | E11: 300000 | F11: 500000 | G11: =F11*H11 -> 300000 | H11: 0.6
C12: Building | E12: 1500000 | F12: 2000000 | G12: =F12*H12 -> 1200000 | H12: 0.6
C13: Equipment | E13: 150000 | F13: 100000 | G13: =F13*H13 -> 45000 | H13: 0.45
C14: Furniture | E14: 50000 | F14: 20000 | G14: =F14*H14 -> 6000 | H14: 0.3
C15: Total | E15: =SUM(E11:E14) -> 2000000 | F15: =SUM(F11:F14) -> 2620000 | G15: =SUM(G11:G14) -> 1551000
C17: The proceeds are expected to be received in: | G17: ='Main sheet'!F15 -> 3 | H17: years.
C19: Collateral enforcement costs
C21: Additional costs are to be involved in enforcing the collaterals, over a span of 3 years.
E23: Amount
C24: Court fees (two levels) | E24: 82530 | F24: 3.2 | G24: % of claim or limit of 504,000
C25: Bailiff initiation fee | E25: 32000 | F25: 2 | G25: % of claim or limit of 32,000
C26: Bailiff service fee | E26: 155100 | F26: 10 | G26: % of forced sale value
C27: Auction platform fee | E27: 77550 | F27: 5 | G27: % of forced sale value
C28: Other selling costs | E28: 15510 | F28: 1 | G28: % of forced sale value
C29: Total | E29: =SUM(E24:E28) -> 362690
C31: The distribution of expenses is indicated as expected below:
C33: Expected outcome
C35: Collateral enforcement | E35: 31.12.16 | F35: 31.12.17 | G35: 31.12.18 | H35: 31.12.19 | I35: 31.12.20 | J35: 31.12.21 | K35: Total
E36: t = 0 | F36: t + 1 | G36: t + 2 | H36: t + 3 | I36: t + 4 | J36: t + 5
C37: Recovery | E37: 0 | F37: 0 | G37: 0 | H37: =G15 -> 1551000 | I37: 0 | J37: 0 | K37: =SUM(F37:J37) -> 1551000
C38: Expenses | E38: -39300 | F38: -48400 | G38: -37170 | H38: -237820 | I38: 0 | J38: 0 | K38: =E29 -> 362690
C40: For additional background on collateral enforcement, refer to cross-country information at:
C41: http://www.doingbusiness.org/en/data/exploretopics/enforcing-contracts
B44: Now, click on "Finish" at top of the spreadsheet to return to the main page.

Sheet Insolvency proceeding
B2: Insolvency proceeding
D3: Consider the information below, then return to the main page:
C5: Collateral values
C7: The collaterals have been reappraised. They will be liquidated for less under insolvency:
E9: Appraisal values | G9: Sales value at enforcement
E10: Original | F10: Updated | G10: Value | H10: % of appraisal value
C11: Land plot | E11: 300000 | F11: 500000 | G11: =F11*H11 -> 200000 | H11: 0.4
C12: Building | E12: 1500000 | F12: 2000000 | G12: =F12*H12 -> 800000 | H12: 0.4
C13: Equipment | E13: 150000 | F13: 100000 | G13: 35000 | H13: 0.35
C14: Furniture | E14: 50000 | F14: 20000 | G14: 4000 | H14: 0.2
C15: Total | E15: =SUM(E11:E14) -> 2000000 | F15: =SUM(F11:F14) -> 2620000 | G15: =SUM(G11:G14) -> 1039000
C17: Proceeds from collateral sales are to be received in: | G17: ='Main sheet'!K14 -> 3 | H17: years.
C19: Liquidation values of assets
C21: Balance sheet item | E21: Book value | F21: Estimated recovery rate | G21: Liquidation value
C22: Cash | E22: 0 | F22: 1 | G22: =E22*F22 -> 0
C23: Accounts receivable
C24: 0-30 days outstanding | E24: 2873178 | F24: 0.6 | G24: =E24*F24 -> 1723906.8
C25: 31-60 days outstanding | E25: 1676021 | F25: 0.3 | G25: =E25*F25 -> 502806.3
C26: Over 60 days outstanding | E26: 239432 | F26: 0.1 | G26: 23943.2
C27: Total accounts receivable | E27: =SUM(E24:E26) -> 4788631 | G27: =SUM(G24:G26) -> 2250656.3
C28: Inventory
C29: Finished goods | E29: 222050 | F29: 0.7 | G29: =E29*F29 -> 155435
C30: Work in progress | E30: 296066 | F30: 0 | G30: 0
C31: Raw materials | E31: 222050 | F31: 0.5 | G31: 111025
C32: Total inventory | E32: =SUM(E29:E31) -> 740166 | G32: =SUM(G29:G31) -> 266460
C33: Other current assets
C34: Prepaid expenses | E34: 0 | F34: 0.5 | G34: =E34*F34 -> 0
C35: Financial investments | E35: 367259 | F35: 0.3 | G35: 110177.7
C36: Promissory notes | E36: 456716 | F36: 0.3 | G36: 137014.8
C37: Total other current assets | E37: =SUM(E34:E36) -> 823975 | G37: =SUM(G34:G36) -> 247192.5
C38: Non-current assets
C39: Land plots | E39: 0 | F39: 0.7 | G39: =E39*F39 -> 0
C40: Buildings | E40: 0 | F40: 0.7 | G40: 0
C41: Equipment | E41: 0 | F41: 0.5 | G41: 0
C42: Other items | E42: 204040 | F42: 0.1 | G42: 20404
C43: Total non-current assets | E43: =SUM(E39:E42) -> 204040 | G43: =SUM(G39:G42) -> 20404
C44: Total assets | E44: =SUM(E27,E32) -> 5528797 | G44: =SUM(G27,G32,G43) -> 2537520.3
C45: Portion of recovery by the bank | F45: 0.81 | G45: =G44*F45 -> 2055391.443
C47: Proceeds from asset liquidation are to be received in: | G47: ='Main sheet'!K15 -> 5 | H47: years.
C49: Insolvency proceeding costs
E51: Amount | F51: Explanation
C52: Court fees (two levels) | E52: 308344 | F52: 3.2 | G52: % of claim or limit of 504,000
C53: Insolvency case opening | E53: 16000 | F53: 10 | G53: times minimal living expenses
C54: Statement of claims | E54: 6400 | F54: 4 | G54: times minimal living expenses
C55: Bailiff initiation fee | E55: 32000 | F55: 2 | G55: % of claim or limit of 32,000
C56: Arbitrage manager pay | E56: 30924 | F56: 2 | G56: times minimal wage for 6 months
C57: Liquidator pay | E57: 216467 | F57: 2 | G57: times minimal wage for 42 months
C58: Sale organizer fee | E58: 154125 | F58: 5 | G58: % of forced sale value
C59: Extra pay to liquidator / manager | E59: 76044 | F59: 3 | G59: % of net recovery value
C60: Other selling costs | E60: 30825 | F60: 1 | G60: % of forced sale value
C61: Total | E61: =SUM(E52:E60) -> 871129
C63: The distribution of expenses over time is indicated as expected below:
C65: Expected outcome
C67: Insolvency proceeding | E67: 31.12.16 | F67: 31.12.17 | G67: 31.12.18 | H67: 31.12.19 | I67: 31.12.20 | J67: 31.12.21 | K67: Total
E68: t = 0 | F68: t + 1 | G68: t + 2 | H68: t + 3 | I68: t + 4 | J68: t + 5
C69: Recovery | E69: 0 | F69: 0 | G69: 0 | H69: 0 | I69: =G15 -> 1039000 | J69: =G45 -> 2055391.443 | K69: =SUM(F69:J69) -> 3094391.443
C70: Expenses | E70: -146831 | F70: -215914 | G70: -65311 | H70: -72123 | I70: -149341 | J70: -221609 | K70: =E61 -> 871129
C72: http://www.doingbusiness.org/en/data/exploretopics/resolving-insolvency
B74: Now, click on "Finish" at top of the spreadsheet to return to the main page.
